fUSD/lending_fUSD_20250512
["ID","MTS","AMOUNT","RATE_DAILY","PERIOD"]
[360775981,1747008116389,250.0,0.00013736,2]
[360775982,1747008278042,150.0,0.00014201,2]
[360775984,1747008325010,1073.72,0.00011812,2]
[360775985,1747008325226,1073.72,0.00014076,2]
[360776008,1747008544684,2500.0,0.00028,120]
[360776148,1747008613275,1000.0,0.00013719,2]
[360776150,1747008630388,663.4,0.00013699,2]
[360776157,1747008631580,-178.72,0.00014271,2]
[360776158,1747008631590,-500.0,0.0001452,2]
[360776159,1747008631600,-164.16023789,0.0001452,2]
[360776160,1747008631610,-300.0,0.00014608,2]
[360776161,1747008631621,-593.71379427,0.00014609,2]
[360776162,1747008631634,-644.87620573,0.00014609,2]
[360776163,1747008631644,-78.20977878,0.00014609,2]
[360776164,1747008631655,-1160.38022122,0.00014609,2]
[360776165,1747008631666,-150.0,0.00014618,2]
[360776166,1747008631675,-300.0,0.00014618,2]
[360776167,1747008631684,-1200.0,0.00014618,2]
[360776168,1747008631693,-870.83228677,0.00014619,2]
[360776169,1747008631730,-614.65523754,0.00014619,2]
[360776170,1747008631742,-2.68597569,0.00014619,2]
[360776171,1747008631755,-5179.91402481,0.00014619,2]
[360776172,1747008631767,-1003.35999999,0.00014619,2]
[360776173,1747008631779,-571.47592795,0.00014619,2]
[360776174,1747008631819,-109.62154725,0.00014619,2]
[360776175,1747008631830,-343.32856307,0.00014619,2]
[360776270,1747008637644,-163.4497255,0.00014618,2]
[360776271,1747008637656,-239.16516057,0.00014618,2]
[360776272,1747008637666,-2188.73893693,0.00014619,2]
[360776273,1747008637676,-184.5909,0.00014619,2]
[360776274,1747008637686,-665.2863,0.00014619,2]
[360776275,1747008637696,-60514.31330578,0.00014619,2]
[360776276,1747008637851,-55594.58930036,0.00014619,2]
[360776277,1747008637863,-658.81543012,0.00014619,2]
[360776280,1747008637925,-371.71697326,0.00014619,2]
[360776281,1747008637937,-1995.64604051,0.00014619,2]
[360776282,1747008637950,-581.77350893,0.00014619,2]
[360776418,1747008639966,-273.71197808,0.00014618,2]
[360776419,1747008639978,-312.54093169,0.00014618,2]
[360776420,1747008640063,-317.81709023,0.00014618,2]
[360776421,1747008640073,-904.07,0.00014618,2]
[360776422,1747008640083,-904.07,0.00014618,2]
[360776424,1747008640092,-904.07,0.00014618,2]
[360776426,1747008640102,-367.52705986,0.00014619,2]
[360776428,1747008640114,-18759.97026236,0.00014619,2]
[360776430,1747008640125,-5705.67880457,0.00014619,2]
[360776433,1747008640144,-21278.74410741,0.00014619,2]
[360776435,1747008640155,-7196.3281801,0.00014619,2]
[360776437,1747008640167,-641.01223463,0.00014619,2]
[360776525,1747008642596,-19045.56417261,0.00014619,2]
[360776526,1747008642607,-4540.0,0.00014619,2]
[360776527,1747008642852,-7344.60111962,0.00014619,2]
[360776528,1747008642864,-1562.12488222,0.00014619,2]
[360776529,1747008642901,-779.63159451,0.00014619,2]
[360776539,1747008645612,-500.0,0.00014559,2]
[360776540,1747008645624,-205.88039741,0.00014559,2]
[360776541,1747008645634,-108800.10465951,0.00014619,2]
[360776542,1747008645823,-747.91340651,0.00014619,2]
[360776543,1747008645834,-784.9815,0.00014619,2]
[360776544,1747008645846,-1414.157248,0.00014619,2]
[360776545,1747008645856,-545.152395,0.00014619,2]
[360776546,1747008645867,-636.548057,0.00014619,2]
[360776547,1747008645878,-472.95900005,0.00014619,2]
[360776548,1747008645889,-1001.65650001,0.00014619,2]
[360776555,1747008676230,589.0,0.00014201,2]
[360776556,1747008759001,23900.0,0.000137,2]
[360776559,1747008972648,150.0,0.00028,120]
[360776560,1747009029722,158.46,0.00013652,2]
[360776562,1747009358182,1007.73,0.0001171,2]
[360776563,1747009358629,1007.73,0.00013973,2]
[360776564,1747009396394,173.4,0.0001401,2]
[360776565,1747009423526,250.0,0.0001359,2]
[360776566,1747009526521,998.0,0.00028,120]
[360776581,1747009598325,840.01,0.00013558,2]
[360776589,1747009655385,630.23,0.00013699,2]
[360776648,1747009793851,1306.0,0.00028,120]
[360776656,1747009825367,1000.0,0.00013557,2]
[360776658,1747009831640,-738.8269785,0.000143,2]
[360776659,1747009831770,-6.46776561,0.000143,2]
[360776660,1747009831780,-622.68924292,0.00014507,2]
[360776662,1747009832029,-577.31075708,0.00014507,2]
[360776665,1747009832053,-300.0,0.00014507,2]
[360776667,1747009832062,-1129.80145976,0.00014508,2]
[360776672,1747009832096,-16775.17244324,0.00014508,2]
[360776674,1747009832105,-151.0,0.00014509,2]
[360776676,1747009832114,-507.67486436,0.00014509,2]
[360776678,1747009832125,-160.97699321,0.00014509,2]
[360776680,1747009832134,-207.4,0.00014509,2]
[360776682,1747009832143,-150.0,0.00014515,2]
[360776685,1747009832152,-2004.87300679,0.00014516,2]
[360776700,1747009832221,-2336.73789321,0.00014516,2]
[360776703,1747009832231,-791.43445479,0.00014516,2]
[360776734,1747009837677,-9661.37154521,0.00014516,2]
[360776735,1747009837687,-1541.40522959,0.00014516,2]
[360776736,1747009837697,-193.61908875,0.00014516,2]
[360776737,1747009837707,-2686.01242112,0.00014516,2]
[360776738,1747009837717,-744.46091272,0.00014516,2]
[360776739,1747009837727,-1541.40522952,0.00014516,2]
[360776740,1747009837737,-2686.0124211,0.00014516,2]
[360776741,1747009837750,-1541.40522952,0.00014516,2]
[360776742,1747009837760,-2686.0124211,0.00014516,2]
[360776743,1747009837770,-1541.40522952,0.00014517,2]
[360776744,1747009837780,-2686.0124211,0.00014517,2]
[360776745,1747009837791,-1541.40522952,0.00014517,2]
[360776746,1747009837801,-2686.0124211,0.00014517,2]
[360776747,1747009837811,-4643.6318,0.00014517,2]
[360776748,1747009837821,-175.63617784,0.00014517,2]
[360776749,1747009837832,-247.69397793,0.00014517,2]
[360776750,1747009837841,-191.3358266,0.00014517,2]
[360776751,1747009837851,-4216.95450642,0.00014517,2]
[360776752,1747009837860,-1541.40522952,0.00014517,2]
[360776753,1747009837869,-2686.0124211,0.00014517,2]
[360776754,1747009837879,-1541.40522952,0.00014517,2]
[360776755,1747009837889,-2686.0124211,0.00014517,2]
[360776756,1747009837898,-1541.40522952,0.00014518,2]
[360776757,1747009837908,-2686.0124211,0.00014518,2]
[360776758,1747009837917,-1541.40522952,0.00014518,2]
[360776759,1747009837927,-2686.0124211,0.00014518,2]
[360776760,1747009837937,-1541.40522952,0.00014518,2]
[360776761,1747009837946,-2686.0124211,0.00014518,2]
[360776762,1747009837956,-2074.3665,0.00014518,2]
[360776763,1747009837966,-272.20983701,0.00014518,2]
[360776765,1747009838017,-476.43552863,0.00014518,2]
[360776806,1747009839861,-2164.215192,0.00014518,2]
[360776824,1747009840029,-9407.19625015,0.00014518,2]
[360776827,1747009840047,-1032.64364733,0.00014518,2]
[360776829,1747009840058,-381.49985002,0.00014518,2]
[360776834,1747009840097,-8486.40956713,0.00014518,2]
[360776982,1747009843224,-2207.44909402,0.00014518,2]
[360776983,1747009843265,-470.0,0.00014518,2]
[360776991,1747009845671,-378.43528873,0.00014518,2]
[360776992,1747009845729,-723.73,0.00014518,2]
[360776993,1747009846003,-34514.08904498,0.00014518,2]
[360776994,1747009846013,-184.5909,0.00014519,2]
[360776995,1747009846023,-3289.6306,0.00014519,2]
[360776996,1747009846032,-2188.739,0.00014519,2]
[360776997,1747009846042,-744.4609127,0.00014563,2]
[360776998,1747009846051,-1382.0,0.000146,2]
[360776999,1747009846061,-562.3,0.00014605,2]
[360777000,1747009846071,-562.3,0.00014605,2]
[360777001,1747009846081,-562.3,0.00014605,2]
[360777002,1747009846091,-562.3,0.00014605,2]
[360777003,1747009846100,-562.3,0.00014605,2]
[360777004,1747009846110,-1157.45,0.00014605,2]
[360777005,1747009846119,-562.3,0.00014606,2]
[360777006,1747009846129,-562.3,0.00014606,2]
[360777007,1747009846138,-562.3,0.00014606,2]
[360777008,1747009846148,-562.3,0.00014606,2]
[360777009,1747009846157,-562.3,0.00014606,2]
[360777010,1747009846167,-1157.45,0.00014606,2]
[360777011,1747009846177,-672.36309483,0.00014606,2]
[360777012,1747009846190,-2639.551,0.00014608,2]
[360777013,1747009846200,-168.088,0.00014608,2]
[360777014,1747009846209,-744.4609127,0.0001461,2]
[360777015,1747009846218,-400.0,0.00014615,2]
[360777016,1747009846228,-400.0,0.00014615,2]
[360777018,1747009846238,-212.90747223,0.00014615,2]
[360777020,1747009846247,-400.0,0.00014615,2]
[360777021,1747009846261,-300.0,0.00014615,2]
[360777022,1747009846271,-400.0,0.00014615,2]
[360777023,1747009846280,-400.0,0.00014615,2]
[360777024,1747009846289,-400.0,0.00014615,2]
[360777025,1747009846299,-400.0,0.00014615,2]
[360777026,1747009846309,-400.0,0.00014615,2]
[360777027,1747009846319,-400.0,0.00014615,2]
[360777028,1747009846328,-400.0,0.00014615,2]
[360777029,1747009846337,-400.0,0.00014615,2]
[360777030,1747009846347,-400.0,0.00014615,2]
[360777031,1747009846356,-400.0,0.00014615,2]
[360777032,1747009846365,-400.0,0.00014615,2]
[360777033,1747009846374,-400.0,0.00014615,2]
[360777034,1747009846384,-541.6942963,0.00014615,2]
[360777035,1747009846394,-400.0,0.00014615,2]
[360777036,1747009846403,-400.0,0.00014615,2]
[360777037,1747009846412,-400.0,0.00014615,2]
[360777038,1747009846421,-501.94642424,0.00014615,2]
[360777039,1747009846430,-400.0,0.00014615,2]
[360777040,1747009846439,-400.0,0.00014615,2]
[360777041,1747009846448,-400.0,0.00014615,2]
[360777042,1747009846458,-400.0,0.00014615,2]
[360777043,1747009846467,-400.0,0.00014615,2]
[360777044,1747009846476,-400.0,0.00014615,2]
[360777045,1747009846485,-547.29704787,0.00014615,2]
[360777046,1747009846494,-459.26,0.00014615,2]
[360777047,1747009846504,-459.26,0.00014615,2]
[360777048,1747009846513,-459.26,0.00014615,2]
[360777049,1747009846522,-446.12113361,0.00014615,2]
[360777050,1747009846532,-400.0,0.00014615,2]
[360777051,1747009846540,-400.0,0.00014615,2]
[360777052,1747009846551,-400.0,0.00014615,2]
[360777053,1747009846560,-400.0,0.00014615,2]
[360777054,1747009846569,-268.64203244,0.00014615,2]
[360777055,1747009846579,-400.0,0.00014615,2]
[360777056,1747009846588,-400.0,0.00014615,2]
[360777057,1747009846597,-461.24904025,0.00014615,2]
[360777058,1747009846606,-400.0,0.00014615,2]
[360777059,1747009846616,-400.0,0.00014615,2]
[360777060,1747009846625,-400.0,0.00014615,2]
[360777061,1747009846635,-5527.15,0.00014615,2]
[360777062,1747009846644,-5527.15,0.00014615,2]
[360777063,1747009846653,-5527.15,0.00014615,2]
[360777064,1747009846662,-950.36,0.00014615,2]
[360777066,1747009846672,-950.36,0.00014615,2]
[360777068,1747009846681,-950.36,0.00014615,2]
[360777070,1747009846690,-832.89,0.00014615,2]
[360777071,1747009846699,-832.89,0.00014615,2]
[360777073,1747009846708,-832.89,0.00014615,2]
[360777075,1747009846717,-16371.52,0.00014615,2]
[360777077,1747009846725,-15204.27486685,0.00014615,2]
[360777117,1747009895017,23900.0,0.00013674,2]
[360777118,1747010180581,158.49,0.00013528,2]
[360777119,1747010358188,5000.0,0.0002,30]
[360777120,1747010395545,941.16,0.00011596,2]
[360777121,1747010395696,941.16,0.0001386,2]
[360777122,1747010699163,598.71,0.00013699,2]
[360777123,1747010712809,-225.31035495,0.00014206,2]
[360777124,1747010716511,-163.87616603,0.00014206,2]
[360777125,1747010723638,-863.53778421,0.00014302,2]
[360777126,1747010723663,-300.0,0.00014397,2]
[360777127,1747010723689,-1200.0,0.00014397,2]
[360777128,1747010723715,-150.0,0.00014397,2]
[360777129,1747010723740,-300.0,0.00014397,2]
[360777130,1747010723773,-500.0,0.00014398,2]
[360777131,1747010723806,-500.0,0.00014398,2]
[360777132,1747010723838,-500.0,0.00014398,2]
[360777133,1747010723868,-500.0,0.00014398,2]
[360777134,1747010723898,-254.11920971,0.00014398,2]
[360777135,1747010723929,-500.0,0.00014398,2]
[360777136,1747010723960,-500.0,0.00014398,2]
[360777137,1747010723992,-500.0,0.00014398,2]
[360777138,1747010724022,-500.0,0.00014398,2]
[360777139,1747010724052,-500.0,0.00014398,2]
[360777140,1747010724083,-287.07288736,0.00014398,2]
[360777141,1747010724108,-6717.4972,0.000144,2]
[360777142,1747010724132,-1520.2251,0.000144,2]
[360777143,1747010724160,-1541.40522959,0.00014405,2]
[360777144,1747010724184,-250.0,0.00014411,2]
[360777145,1747010724208,-595.56873018,0.00014415,2]
[360777146,1747010724233,-4643.6318,0.00014416,2]
[360777147,1747010724259,-160.87973067,0.00014416,2]
[360777148,1747010724286,-1541.40522952,0.00014417,2]
[360777149,1747010724309,-432.7863,0.00014419,2]
[360777150,1747010724333,-1297.689,0.00014419,2]
[360777151,1747010724358,-1541.40522952,0.00014429,2]
[360777152,1747010724382,-595.56873016,0.0001444,2]
[360777153,1747010724407,-1541.40522952,0.00014442,2]
[360777154,1747010724432,-1541.40522952,0.00014454,2]
[360777155,1747010724457,-239.16516057,0.00014465,2]
[360777156,1747010724483,-595.56873016,0.00014466,2]
[360777157,1747010724508,-500.0,0.00014466,2]
[360777158,1747010724531,-150.99,0.00014466,2]
[360777159,1747010724559,-1149.33,0.00014466,2]
[360777160,1747010724583,-499.99,0.00014466,2]
[360777161,1747010724612,-3541.29,0.00014466,2]
[360777162,1747010724637,-160.87973066,0.00014466,2]
[360777163,1747010724662,-1541.40522952,0.00014466,2]
[360777164,1747010724687,-1541.40522952,0.00014478,2]
[360777165,1747010724713,-1541.40522952,0.00014491,2]
[360777166,1747010724739,-595.56873016,0.00014491,2]
[360777167,1747010724764,-151.0,0.00014497,2]
[360777168,1747010724789,-207.4,0.00014497,2]
[360777169,1747010724814,-29532.55,0.00014499,2]
[360777170,1747010724844,-894.39,0.00014499,2]
[360777171,1747010724868,-102744.4646184,0.000145,2]
[360777172,1747010724894,-2686.01242112,0.000145,2]
[360777173,1747010724920,-193.61908875,0.000145,2]
[360777174,1747010724945,-1222.14,0.000145,2]
[360777175,1747010724973,-2686.0124211,0.00014502,2]
[360777176,1747010724997,-14760.08,0.00014502,2]
[360777177,1747010725022,-532.62,0.00014502,2]
[360777178,1747010725053,-193.95,0.00014502,2]
[360777179,1747010725079,-150.99,0.00014502,2]
[360777180,1747010725105,-180.27,0.00014502,2]
[360777181,1747010725131,-4575.16,0.00014502,2]
[360777182,1747010725158,-1541.40522952,0.00014503,2]
[360777183,1747010725186,-2686.0124211,0.00014503,2]
[360777184,1747010725213,-2686.0124211,0.00014505,2]
[360777185,1747010725238,-14981.39717124,0.00014506,2]
[360777186,1747010725264,-2686.0124211,0.00014507,2]
[360777187,1747010725289,-193.61908873,0.00014508,2]
[360777188,1747010725316,-2686.0124211,0.00014508,2]
[360777189,1747010725343,-2686.0124211,0.0001451,2]
[360777190,1747010725369,-2686.0124211,0.00014512,2]
[360777191,1747010725394,-400.0,0.00014513,2]
[360777192,1747010725421,-400.0,0.00014513,2]
[360777193,1747010725449,-400.0,0.00014513,2]
[360777194,1747010725483,-400.0,0.00014513,2]
[360777195,1747010725768,-2686.0124211,0.00014513,2]
[360777196,1747010725811,-2074.3665,0.00014514,2]
[360777197,1747010725835,-272.2098,0.00014514,2]
[360777198,1747010725859,-4216.95450642,0.00014514,2]
[360777199,1747010725883,-248.02792338,0.00014514,2]
[360777200,1747010725906,-211.54129952,0.00014514,2]
[360777201,1747010725929,-400.0,0.00014514,2]
[360777202,1747010725952,-400.0,0.00014514,2]
[360777203,1747010725976,-400.0,0.00014514,2]
[360777204,1747010726000,-400.0,0.00014514,2]
[360777205,1747010726023,-1000.0,0.00014515,2]
[360777206,1747010726048,-257928.99399217,0.00014515,2]
[360777207,1747010726071,-400.0,0.00014515,2]
[360777208,1747010726094,-400.0,0.00014515,2]
[360777209,1747010726117,-400.0,0.00014515,2]
[360777210,1747010726140,-800.29,0.00014515,2]
[360777211,1747010726163,-400.0,0.00014515,2]
[360777212,1747010726187,-234.7204776,0.00014515,2]
[360777213,1747010726210,-400.0,0.00014515,2]
[360777214,1747010726237,-400.0,0.00014515,2]
[360777215,1747010726271,-400.0,0.00014515,2]
[360777216,1747010726300,-784.93,0.00014515,2]
[360777217,1747010726326,-298.30352734,0.00014515,2]
[360777218,1747010726350,-735.56,0.00014515,2]
[360777219,1747010726376,-735.56,0.00014515,2]
[360777220,1747010726400,-887.97,0.00014515,2]
[360777221,1747010726425,-1260.83,0.00014515,2]
[360777222,1747010726450,-1260.83,0.00014515,2]
[360777223,1747010726474,-564.99,0.00014515,2]
[360777224,1747010726498,-400.0,0.00014515,2]
[360777225,1747010726522,-400.0,0.00014515,2]
[360777226,1747010726550,-578.0,0.00014515,2]
[360777227,1747010726574,-578.0,0.00014515,2]
[360777228,1747010726600,-1329.18,0.00014515,2]
[360777229,1747010726624,-946.34,0.00014515,2]
[360777230,1747010726650,-946.34,0.00014515,2]
[360777231,1747010726675,-400.0,0.00014515,2]
[360777232,1747010726703,-1251.29,0.00014515,2]
[360777233,1747010726736,-1251.29,0.00014515,2]
[360777234,1747010726767,-400.0,0.00014515,2]
[360777235,1747010726799,-400.0,0.00014515,2]
[360777236,1747010726824,-400.0,0.00014515,2]
[360777237,1747010726850,-1331.23,0.00014515,2]
[360777238,1747010726877,-1331.23,0.00014515,2]
[360777239,1747010726904,-1388.92,0.00014515,2]
[360777240,1747010726930,-400.0,0.00014515,2]
[360777241,1747010726956,-1124.35,0.00014515,2]
[360777242,1747010726984,-758.88,0.00014515,2]
[360777243,1747010727010,-758.88,0.00014515,2]
[360777244,1747010727037,-434.24,0.00014515,2]
[360777245,1747010727066,-2788.22,0.00014515,2]
[360777246,1747010727092,-400.0,0.00014515,2]
[360777247,1747010727117,-400.0,0.00014515,2]
[360777248,1747010727143,-400.0,0.00014515,2]
[360777249,1747010727168,-2168.6,0.00014515,2]
[360777250,1747010727194,-2168.6,0.00014515,2]
[360777251,1747010727222,-400.0,0.00014515,2]
[360777252,1747010727250,-433.8,0.00014515,2]
[360777253,1747010727276,-2686.0124211,0.00014515,2]
[360777254,1747010727302,-1126.99,0.00014515,2]
[360777255,1747010727327,-1126.99,0.00014515,2]
[360777256,1747010727352,-1142.1,0.00014515,2]
[360777257,1747010727379,-698.56,0.00014515,2]
[360777258,1747010727404,-400.0,0.00014515,2]
[360777259,1747010727430,-4801.84,0.00014515,2]
[360777260,1747010727455,-400.0,0.00014515,2]
[360777261,1747010727483,-1458.52,0.00014515,2]
[360777262,1747010727508,-1458.52,0.00014515,2]
[360777263,1747010727535,-924.71,0.00014515,2]
[360777264,1747010727566,-1364.9,0.00014515,2]
[360777265,1747010727591,-400.0,0.00014515,2]
[360777266,1747010727617,-400.0,0.00014515,2]
[360777267,1747010727645,-660.27,0.00014515,2]
[360777268,1747010727671,-830.14,0.00014515,2]
[360777269,1747010727696,-598.99,0.00014515,2]
[360777270,1747010727722,-1487.0,0.00014515,2]
[360777271,1747010727747,-1487.0,0.00014515,2]
[360777272,1747010727774,-2006.54,0.00014515,2]
[360777273,1747010727803,-1549.58,0.00014515,2]
[360777274,1747010727828,-773.39,0.00014515,2]
[360777275,1747010727853,-773.39,0.00014515,2]
[360777276,1747010727879,-1314.32,0.00014515,2]
[360777277,1747010727906,-6637.48,0.00014515,2]
[360777278,1747010727930,-548.87,0.00014515,2]
[360777279,1747010727956,-548.87,0.00014515,2]
[360777280,1747010727982,-624.04,0.00014515,2]
[360777281,1747010728007,-1976.33,0.00014515,2]
[360777282,1747010728032,-1749.69,0.00014515,2]
[360777283,1747010728058,-752.03,0.00014515,2]
[360777284,1747010728082,-1749.69,0.00014515,2]
[360777285,1747010728106,-400.0,0.00014515,2]
[360777286,1747010728131,-241.64206959,0.00014515,2]
[360777287,1747010728155,-573.15,0.00014515,2]
[360777288,1747010728179,-400.0,0.00014515,2]
[360777289,1747010728205,-692.58,0.00014515,2]
[360777290,1747010728234,-1541.40522952,0.00014515,2]
[360777291,1747010728260,-484.23,0.00014515,2]
[360777292,1747010728521,-484.23,0.00014515,2]
[360777293,1747010728547,-400.0,0.00014515,2]
[360777294,1747010728572,-400.0,0.00014515,2]
[360777295,1747010728598,-2069.32,0.00014515,2]
[360777296,1747010728621,-703.29,0.00014515,2]
[360777297,1747010728647,-703.29,0.00014515,2]
[360777298,1747010728670,-676.75,0.00014515,2]
[360777299,1747010728695,-676.75,0.00014515,2]
[360777300,1747010728720,-1114.44,0.00014515,2]
[360777301,1747010728745,-1970.13,0.00014515,2]
[360777302,1747010728769,-551.64,0.00014515,2]
[360777303,1747010728793,-473.17,0.00014515,2]
[360777304,1747010728817,-473.17,0.00014515,2]
[360777305,1747010728841,-414.56,0.00014515,2]
[360777306,1747010728866,-2979.22,0.00014515,2]
[360777307,1747010728891,-400.0,0.00014515,2]
[360777308,1747010728915,-400.0,0.00014515,2]
[360777309,1747010728944,-648.2,0.00014515,2]
[360777310,1747010728970,-400.0,0.00014515,2]
[360777311,1747010728996,-400.0,0.00014515,2]
[360777312,1747010729022,-3156.48,0.00014515,2]
[360777313,1747010729047,-889.7,0.00014515,2]
[360777314,1747010729072,-614.72,0.00014515,2]
[360777315,1747010729096,-614.72,0.00014515,2]
[360777316,1747010729120,-652.1,0.00014515,2]
[360777317,1747010729143,-2558.8,0.00014515,2]
[360777318,1747010729168,-3579.76,0.00014515,2]
[360777319,1747010729194,-10223.07,0.00014515,2]
[360777320,1747010729220,-3782.04,0.00014515,2]
[360777321,1747010729245,-3782.04,0.00014515,2]
[360777322,1747010729271,-400.0,0.00014515,2]
[360777323,1747010729297,-444.13,0.00014515,2]
[360777324,1747010729323,-1544.67,0.00014515,2]
[360777325,1747010729348,-5254.89,0.00014515,2]
[360777326,1747010729372,-400.0,0.00014515,2]
[360777327,1747010729396,-400.0,0.00014515,2]
[360777328,1747010729424,-400.0,0.00014515,2]
[360777329,1747010729450,-400.0,0.00014515,2]
[360777330,1747010729476,-400.0,0.00014515,2]
[360777331,1747010729502,-4218.47,0.00014515,2]
[360777332,1747010729527,-400.0,0.00014515,2]
[360777333,1747010729552,-1171.93,0.00014515,2]
[360777334,1747010729580,-400.0,0.00014515,2]
[360777335,1747010729605,-400.0,0.00014515,2]
[360777336,1747010729630,-401.85,0.00014515,2]
[360777337,1747010729659,-431.94,0.00014515,2]
[360777338,1747010729686,-431.94,0.00014515,2]
[360777339,1747010729711,-400.0,0.00014515,2]
[360777340,1747010729741,-4116.5,0.00014515,2]
[360777341,1747010729767,-400.0,0.00014515,2]
[360777342,1747010729791,-529.74909752,0.00014515,2]
[360777343,1747010729816,-2650.27,0.00014515,2]
[360777344,1747010729840,-400.0,0.00014515,2]
[360777345,1747010729864,-400.0,0.00014515,2]
[360777346,1747010729889,-400.0,0.00014515,2]
[360777347,1747010729916,-475.01,0.00014515,2]
[360777348,1747010729942,-470.52,0.00014515,2]
[360777349,1747010729969,-400.0,0.00014515,2]
[360777350,1747010729994,-400.0,0.00014515,2]
[360777351,1747010730020,-400.0,0.00014515,2]
[360777352,1747010730048,-2903.34,0.00014515,2]
[360777353,1747010730074,-1273.92,0.00014515,2]
[360777354,1747010730099,-1273.92,0.00014515,2]
[360777355,1747010730124,-400.0,0.00014515,2]
[360777356,1747010730149,-400.0,0.00014515,2]
[360777357,1747010730174,-1108.98,0.00014515,2]
[360777358,1747010730199,-1108.98,0.00014515,2]
[360777359,1747010730226,-514.29,0.00014515,2]
[360777360,1747010730252,-1272.34,0.00014515,2]
[360777361,1747010730276,-400.0,0.00014515,2]
[360777362,1747010730300,-400.0,0.00014515,2]
[360777363,1747010730324,-1782.64,0.00014515,2]
[360777364,1747010730349,-400.0,0.00014515,2]
[360777365,1747010730373,-400.0,0.00014515,2]
[360777366,1747010730397,-400.0,0.00014515,2]
[360777367,1747010730421,-400.0,0.00014515,2]
[360777368,1747010730446,-500.0,0.00014515,2]
[360777369,1747010730474,-400.0,0.00014515,2]
[360777370,1747010730498,-511.32,0.00014515,2]
[360777371,1747010730523,-837.6,0.00014515,2]
[360777372,1747010730548,-400.0,0.00014515,2]
[360777373,1747010730575,-400.0,0.00014515,2]
[360777374,1747010730600,-15119.89,0.00014515,2]
[360777375,1747010730626,-1151.93,0.00014515,2]
[360777376,1747010730650,-400.0,0.00014515,2]
[360777377,1747010730676,-400.0,0.00014515,2]
[360777378,1747010730701,-400.0,0.00014515,2]
[360777379,1747010730725,-500.0,0.00014515,2]
[360777380,1747010730751,-4216.9545064,0.00014516,2]
[360777381,1747010730775,-248.02792338,0.00014516,2]
[360777382,1747010730804,-211.54129951,0.00014516,2]
[360777383,1747010730830,-50395.86177992,0.00014516,2]
[360777388,1747010827787,168.91,0.00013956,2]
[360777389,1747010837415,1135.0,0.00028,120]
[360777393,1747010865345,1310.26,0.00028,120]
[360777398,1747010906293,23900.0,0.00013485,2]
[360777404,1747010942745,1000.0,0.00013479,2]
[360777405,1747010948613,250.0,0.0001352,2]
[360777415,1747011005467,1577.69,0.00014,2]
[360777416,1747011007151,1577.69,0.00014,2]
[360777417,1747011008819,1577.69,0.00014,2]
[360777418,1747011010515,1577.69,0.00014,2]
[360777419,1747011031787,-234.313721,0.0001423,2]
[360777420,1747011031797,-1200.0,0.00014302,2]
[360777421,1747011031806,-300.0,0.00014302,2]
[360777422,1747011031815,-500.0,0.00014303,2]
[360777423,1747011031826,-308.666279,0.00014303,2]
[360777432,1747011032165,-191.333721,0.00014303,2]
[360777435,1747011032196,-500.0,0.00014303,2]
[360777437,1747011032206,-500.0,0.00014303,2]
[360777439,1747011032215,-500.0,0.00014303,2]
[360777441,1747011032224,-500.0,0.00014303,2]
[360777443,1747011032236,-422.41628065,0.00014303,2]
[360777733,1747011035458,-77.58371935,0.00014303,2]
[360777735,1747011035470,-500.0,0.00014303,2]
[360777737,1747011035486,-500.0,0.00014303,2]